[Event "Titled Tuesday Blitz August 09 Early 2022"]
[White "Kostiukov, Alexandr"]
[Black "D`Arruda, Ricardo D."]
[WhiteFideId "14108100"]
[BlackFideId "100692"]
[WhiteElo "2202"]
[BlackElo "2474"]
[Result "1-0"]
[Round "08"]
[TimeControl "180+1"]
[Date "2022.08.09"]
[WhiteClock "0:00:33"]
[BlackClock "0:01:17"]

1. g3 {[%clk 0:02:11]}  d5 {[%clk 0:02:57]} 2. Bg2 {[%clk 0:02:12]}  Nf6 {[%clk 0:02:57]} 3. d3 {[%clk 0:02:13]}  c6 {[%clk 0:02:57]} 4. e4 {[%clk 0:02:13]}  dxe4 {[%clk 0:02:56]} 5. dxe4 {[%clk 0:02:14]}  Qxd1+ {[%clk 0:02:55]} 6. Kxd1 {[%clk 0:02:15]}  Nbd7 {[%clk 0:02:53]} 7. f3 {[%clk 0:02:15]}  e5 {[%clk 0:02:52]} 8. Be3 {[%clk 0:02:16]}  Bc5 {[%clk 0:02:51]} 9. Ke2 {[%clk 0:02:16]}  Ke7 {[%clk 0:02:47]} 10. a4 {[%clk 0:02:14]}  a5 {[%clk 0:02:47]} 11. Nd2 {[%clk 0:02:11]}  Bxe3 {[%clk 0:02:47]} 12. Kxe3 {[%clk 0:02:11]}  Nb6 {[%clk 0:02:45]} 13. Bh3 {[%clk 0:02:06]}  Bxh3 {[%clk 0:02:44]} 14. Nxh3 {[%clk 0:02:06]}  Nfd7 {[%clk 0:02:44]} 15. Nf2 {[%clk 0:02:04]}  Nc5 {[%clk 0:02:43]} 16. Nd3 {[%clk 0:02:00]}  Nxd3 {[%clk 0:02:41]} 17. cxd3 {[%clk 0:02:01]}  Rhd8 {[%clk 0:02:39]} 18. Rhc1 {[%clk 0:02:00]}  Rd7 {[%clk 0:02:38]} 19. Nc4 {[%clk 0:01:56]}  Nxc4+ {[%clk 0:02:38]} 20. Rxc4 {[%clk 0:01:56]}  Rad8 {[%clk 0:02:34]} 21. Rd1 {[%clk 0:01:54]}  f6 {[%clk 0:02:34]} 22. f4 {[%clk 0:01:51]}  Rd4 {[%clk 0:02:24]} 23. b3 {[%clk 0:01:47]}  Rxc4 {[%clk 0:02:18]} 24. bxc4 {[%clk 0:01:46]}  Kd6 {[%clk 0:02:11]} 25. d4 {[%clk 0:01:20]}  exd4+ {[%clk 0:01:59]} 26. Rxd4+ {[%clk 0:01:15]}  Kc7 {[%clk 0:02:00]} 27. Rxd8 {[%clk 0:01:04]}  Kxd8 {[%clk 0:02:01]} 28. c5 {[%clk 0:01:02]}  Kc7 {[%clk 0:01:59]} 29. Kd4 {[%clk 0:01:01]}  b5 {[%clk 0:01:53]} 30. cxb6+ {[%clk 0:01:00]}  Kxb6 {[%clk 0:01:53]} 31. e5 {[%clk 0:00:57]}  fxe5+ {[%clk 0:01:24]} 32. fxe5 {[%clk 0:00:52]}  Kc7 {[%clk 0:01:20]} 33. Kc5 {[%clk 0:00:46]}  Kd7 {[%clk 0:01:18]} 34. Kb6 {[%clk 0:00:33]}  Ke6 {[%clk 0:01:17]} 35. Kxa5 {[%clk 0:00:33]}  Kxe5 {[%clk 0:01:17]} 36. Kb6 {[%clk 0:00:32]}  Kd5 {[%clk 0:01:17]} 37. a5 {[%clk 0:00:33]} 1-0


[Site "https://www.chess.com"]

[Event "Titled Tuesday Blitz August 09 Early 2022"]
[White "Lebedev, Artem S."]
[Black "Adury, Anant"]
[WhiteFideId "34272747"]
[BlackFideId "30964687"]
[WhiteElo "1699"]
[BlackElo "2319"]
[Result "1-0"]
[Round "08"]
[TimeControl "180+1"]
[Date "2022.08.09"]
[WhiteClock "0:00:04"]
[BlackClock "0:00:05"]

1. e4 {[%clk 0:03:00]}  e5 {[%clk 0:02:59]} 2. Nf3 {[%clk 0:03:00]}  Nf6 {[%clk 0:02:58]} 3. d4 {[%clk 0:02:59]}  exd4 {[%clk 0:02:58]} 4. e5 {[%clk 0:02:56]}  Ne4 {[%clk 0:02:58]} 5. Qxd4 {[%clk 0:02:54]}  d5 {[%clk 0:02:57]} 6. exd6 {[%clk 0:02:47]}  Nxd6 {[%clk 0:02:56]} 7. Nc3 {[%clk 0:02:43]}  Nc6 {[%clk 0:02:56]} 8. Qf4 {[%clk 0:02:42]}  Be6 {[%clk 0:02:55]} 9. Bd2 {[%clk 0:02:41]}  Qd7 {[%clk 0:02:55]} 10. O-O-O {[%clk 0:02:40]}  Be7 {[%clk 0:02:56]} 11. Bd3 {[%clk 0:02:37]}  O-O-O {[%clk 0:02:54]} 12. Rhe1 {[%clk 0:02:32]}  Bf6 {[%clk 0:02:54]} 13. Ne4 {[%clk 0:02:23]}  Nxe4 {[%clk 0:02:49]} 14. Bxe4 {[%clk 0:02:22]}  Qd6 {[%clk 0:02:50]} 15. Qxd6 {[%clk 0:02:18]}  Rxd6 {[%clk 0:02:50]} 16. a3 {[%clk 0:02:05]}  Rhd8 {[%clk 0:02:46]} 17. Bxc6 {[%clk 0:01:46]}  Rxc6 {[%clk 0:02:37]} 18. Bg5 {[%clk 0:01:42]}  Rxd1+ {[%clk 0:02:24]} 19. Rxd1 {[%clk 0:01:39]}  Bg4 {[%clk 0:02:23]} 20. Rd3 {[%clk 0:01:11]}  Bf5 {[%clk 0:01:55]} 21. Rd2 {[%clk 0:01:05]}  Be4 {[%clk 0:01:55]} 22. Bxf6 {[%clk 0:00:56]}  Rxf6 {[%clk 0:01:56]} 23. Ne1 {[%clk 0:00:56]}  Rh6 {[%clk 0:01:54]} 24. h3 {[%clk 0:00:51]}  Rg6 {[%clk 0:01:51]} 25. g3 {[%clk 0:00:50]}  h5 {[%clk 0:01:50]} 26. Re2 {[%clk 0:00:48]}  Bc6 {[%clk 0:01:50]} 27. h4 {[%clk 0:00:45]}  Rf6 {[%clk 0:01:44]} 28. Nd3 {[%clk 0:00:40]}  Bb5 {[%clk 0:01:43]} 29. Kd2 {[%clk 0:00:39]}  Rd6 {[%clk 0:01:41]} 30. Re5 {[%clk 0:00:37]}  Bxd3 {[%clk 0:01:41]} 31. cxd3 {[%clk 0:00:37]}  g6 {[%clk 0:01:42]} 32. Re7 {[%clk 0:00:32]}  Rf6 {[%clk 0:01:42]} 33. Ke3 {[%clk 0:00:27]}  Kd8 {[%clk 0:01:42]} 34. Re5 {[%clk 0:00:26]}  Kd7 {[%clk 0:01:40]} 35. Rd5+ {[%clk 0:00:14]}  Kc6 {[%clk 0:01:39]} 36. Re5 {[%clk 0:00:15]}  Kb6 {[%clk 0:01:38]} 37. f4 {[%clk 0:00:14]}  Kc6 {[%clk 0:01:31]} 38. Kf3 {[%clk 0:00:13]}  Rf5 {[%clk 0:01:07]} 39. Re7 {[%clk 0:00:09]}  Kd6 {[%clk 0:01:06]} 40. Re2 {[%clk 0:00:07]}  Rd5 {[%clk 0:01:05]} 41. Ke4 {[%clk 0:00:05]}  f5+ {[%clk 0:01:05]} 42. Ke3 {[%clk 0:00:06]}  Kc5 {[%clk 0:01:02]} 43. Rc2+ {[%clk 0:00:06]}  Kb6 {[%clk 0:01:02]} 44. d4 {[%clk 0:00:05]}  c6 {[%clk 0:01:00]} 45. Kd3 {[%clk 0:00:05]}  Kb5 {[%clk 0:00:59]} 46. Re2 {[%clk 0:00:05]}  Rd6 {[%clk 0:00:56]} 47. Re5+ {[%clk 0:00:05]}  Kb6 {[%clk 0:00:53]} 48. Re7 {[%clk 0:00:05]}  Ka6 {[%clk 0:00:53]} 49. Re5 {[%clk 0:00:05]}  b6 {[%clk 0:00:51]} 50. Kc3 {[%clk 0:00:05]}  Kb7 {[%clk 0:00:50]} 51. b4 {[%clk 0:00:05]}  Kc7 {[%clk 0:00:47]} 52. Re7+ {[%clk 0:00:05]}  Kb8 {[%clk 0:00:47]} 53. Re8+ {[%clk 0:00:05]}  Kb7 {[%clk 0:00:47]} 54. Re7+ {[%clk 0:00:06]}  Ka6 {[%clk 0:00:48]} 55. Re8 {[%clk 0:00:06]}  Kb5 {[%clk 0:00:41]} 56. Re5+ {[%clk 0:00:05]}  Ka4 {[%clk 0:00:40]} 57. Re7 {[%clk 0:00:05]}  a5 {[%clk 0:00:39]} 58. Ra7 {[%clk 0:00:05]}  Kxa3 {[%clk 0:00:33]} 59. bxa5 {[%clk 0:00:04]}  b5 {[%clk 0:00:34]} 60. Rb7 {[%clk 0:00:03]}  Rd8 {[%clk 0:00:30]} 61. a6 {[%clk 0:00:04]}  Ra8 {[%clk 0:00:13]} 62. Rb6 {[%clk 0:00:04]}  b4+ {[%clk 0:00:07]} 63. Rxb4 {[%clk 0:00:04]}  Rxa6 {[%clk 0:00:08]} 64. Rc4 {[%clk 0:00:04]}  Rb6 {[%clk 0:00:06]} 65. Rc5 {[%clk 0:00:05]}  Rb3+ {[%clk 0:00:07]} 66. Kc4 {[%clk 0:00:05]}  Rb4+ {[%clk 0:00:05]} 67. Kc3 {[%clk 0:00:04]}  Rb3+ {[%clk 0:00:06]} 68. Kc4 {[%clk 0:00:05]}  Rxg3 {[%clk 0:00:05]} 69. Rxc6 {[%clk 0:00:05]}  Rg4 {[%clk 0:00:04]} 70. d5 {[%clk 0:00:04]}  Rxf4+ {[%clk 0:00:05]} 71. Kc5 {[%clk 0:00:04]}  Rxh4 {[%clk 0:00:05]} 72. d6 {[%clk 0:00:05]}  Rh1 {[%clk 0:00:02]} 73. d7 {[%clk 0:00:05]}  Rc1+ {[%clk 0:00:03]} 74. Kd6 {[%clk 0:00:04]}  Rd1+ {[%clk 0:00:03]} 75. Ke7 {[%clk 0:00:04]}  Rxd7+ {[%clk 0:00:04]} 76. Kxd7 {[%clk 0:00:04]}  f4 {[%clk 0:00:05]} 77. Ke6 {[%clk 0:00:04]}  f3 {[%clk 0:00:05]} 78. Rc3+ {[%clk 0:00:04]} 1-0


[Site "https://www.chess.com"]

[Event "Titled Tuesday Blitz August 09 Early 2022"]
[White "Malyi, Viacheslav"]
[Black "Zaichenko, Daria"]
[WhiteFideId "14123983"]
[BlackFideId "4197453"]
[WhiteElo "2190"]
[BlackElo "2039"]
[Result "1-0"]
[Round "08"]
[TimeControl "180+1"]
[Date "2022.08.09"]
[WhiteClock "0:00:41"]
[BlackClock "0:01:33"]

1. e4 {[%clk 0:02:52]}  c5 {[%clk 0:02:59]} 2. Nf3 {[%clk 0:02:41]}  Nc6 {[%clk 0:02:57]} 3. d4 {[%clk 0:02:42]}  cxd4 {[%clk 0:02:58]} 4. Nxd4 {[%clk 0:02:43]}  Nf6 {[%clk 0:02:58]} 5. Nc3 {[%clk 0:02:43]}  d6 {[%clk 0:02:59]} 6. Rg1 {[%clk 0:02:42]}  e5 {[%clk 0:02:58]} 7. Nb3 {[%clk 0:02:41]}  Be6 {[%clk 0:02:56]} 8. g4 {[%clk 0:02:41]}  Bxb3 {[%clk 0:02:55]} 9. axb3 {[%clk 0:02:37]}  Nd4 {[%clk 0:02:55]} 10. Be3 {[%clk 0:02:27]}  Qb6 {[%clk 0:02:52]} 11. Bb5+ {[%clk 0:02:06]}  Kd8 {[%clk 0:02:45]} 12. Bc4 {[%clk 0:01:56]}  Be7 {[%clk 0:02:39]} 13. g5 {[%clk 0:01:48]}  Nd7 {[%clk 0:02:37]} 14. Nd5 {[%clk 0:01:48]}  Qc5 {[%clk 0:02:32]} 15. c3 {[%clk 0:01:42]}  b5 {[%clk 0:02:29]} 16. cxd4 {[%clk 0:01:41]}  exd4 {[%clk 0:02:28]} 17. Bxd4 {[%clk 0:01:42]}  Qc6 {[%clk 0:02:28]} 18. Nxe7 {[%clk 0:01:38]}  Qxe4+ {[%clk 0:02:26]} 19. Be2 {[%clk 0:01:32]}  Qxe7 {[%clk 0:02:18]} 20. Qd2 {[%clk 0:01:27]}  Re8 {[%clk 0:02:11]} 21. Be3 {[%clk 0:01:27]}  Rc8 {[%clk 0:02:05]} 22. Rd1 {[%clk 0:01:24]}  Ne5 {[%clk 0:01:55]} 23. Qxd6+ {[%clk 0:01:15]}  Qxd6 {[%clk 0:01:55]} 24. Rxd6+ {[%clk 0:01:16]}  Kc7 {[%clk 0:01:56]} 25. Rd1 {[%clk 0:01:14]}  a6 {[%clk 0:01:54]} 26. Kf1 {[%clk 0:01:13]}  Kb7 {[%clk 0:01:53]} 27. Kg2 {[%clk 0:01:12]}  Rc2 {[%clk 0:01:52]} 28. Bf3+ {[%clk 0:01:08]}  Nxf3 {[%clk 0:01:49]} 29. Kxf3 {[%clk 0:01:09]}  Rxb2 {[%clk 0:01:49]} 30. Rd7+ {[%clk 0:01:09]}  Kc6 {[%clk 0:01:50]} 31. Rgd1 {[%clk 0:01:08]}  Re6 {[%clk 0:01:48]} 32. Rxf7 {[%clk 0:01:01]}  Rxb3 {[%clk 0:01:48]} 33. Rxg7 {[%clk 0:00:56]}  h6 {[%clk 0:01:46]} 34. Rc1+ {[%clk 0:00:49]}  Kd6 {[%clk 0:01:43]} 35. Ra7 {[%clk 0:00:45]}  Ke5 {[%clk 0:01:37]} 36. Rc5+ {[%clk 0:00:42]}  Kd6 {[%clk 0:01:34]} 37. Rxa6+ {[%clk 0:00:40]}  Kd7 {[%clk 0:01:33]} 38. Rxe6 {[%clk 0:00:40]}  Kxe6 {[%clk 0:01:33]} 39. gxh6 {[%clk 0:00:41]} 1-0


[Site "https://www.chess.com"]

[Event "Titled Tuesday Blitz August 09 Early 2022"]
[White "Martinez Alcantara, Jose Eduardo"]
[Black "Csonka, Balazs"]
[WhiteFideId "3805662"]
[BlackFideId "742910"]
[WhiteElo "3025"]
[BlackElo "2757"]
[Result "1/2-1/2"]
[Round "08"]
[TimeControl "180+1"]
[Date "2022.08.09"]
[WhiteClock "0:00:17"]
[BlackClock "0:00:03"]

1. c4 {[%clk 0:03:00]}  c6 {[%clk 0:02:53]} 2. g3 {[%clk 0:03:01]}  d5 {[%clk 0:02:52]} 3. Nf3 {[%clk 0:03:01]}  Nf6 {[%clk 0:02:44]} 4. Bg2 {[%clk 0:03:01]}  dxc4 {[%clk 0:02:43]} 5. O-O {[%clk 0:02:59]}  b5 {[%clk 0:02:44]} 6. a4 {[%clk 0:02:58]}  Bb7 {[%clk 0:02:41]} 7. b3 {[%clk 0:02:58]}  cxb3 {[%clk 0:02:31]} 8. Qxb3 {[%clk 0:02:59]}  a6 {[%clk 0:02:29]} 9. Ba3 {[%clk 0:02:57]}  e6 {[%clk 0:02:09]} 10. Bxf8 {[%clk 0:02:56]}  Kxf8 {[%clk 0:02:10]} 11. d4 {[%clk 0:02:51]}  g6 {[%clk 0:02:03]} 12. Nbd2 {[%clk 0:02:50]}  Kg7 {[%clk 0:02:02]} 13. Qb1 {[%clk 0:02:51]}  Nbd7 {[%clk 0:01:53]} 14. Nb3 {[%clk 0:02:51]}  Rc8 {[%clk 0:01:50]} 15. Rc1 {[%clk 0:02:51]}  Qb6 {[%clk 0:01:47]} 16. a5 {[%clk 0:02:45]}  Qa7 {[%clk 0:01:33]} 17. Nfd2 {[%clk 0:02:38]}  c5 {[%clk 0:01:14]} 18. Bxb7 {[%clk 0:02:39]}  Qxb7 {[%clk 0:01:15]} 19. dxc5 {[%clk 0:02:39]}  Rhd8 {[%clk 0:01:04]} 20. Qb2 {[%clk 0:02:38]}  Qd5 {[%clk 0:01:04]} 21. Rc2 {[%clk 0:02:20]}  Qe5 {[%clk 0:00:50]} 22. Rac1 {[%clk 0:01:58]}  Qxb2 {[%clk 0:00:48]} 23. Rxb2 {[%clk 0:01:59]}  Ne5 {[%clk 0:00:46]} 24. Kg2 {[%clk 0:01:57]}  Rc7 {[%clk 0:00:37]} 25. Rbc2 {[%clk 0:01:56]}  Rdc8 {[%clk 0:00:33]} 26. Nf3 {[%clk 0:01:53]}  Nxf3 {[%clk 0:00:32]} 27. Kxf3 {[%clk 0:01:53]}  Nd5 {[%clk 0:00:30]} 28. e4 {[%clk 0:01:48]}  Nb4 {[%clk 0:00:28]} 29. Rd2 {[%clk 0:01:48]}  Kf8 {[%clk 0:00:23]} 30. Ke3 {[%clk 0:01:45]}  Ke7 {[%clk 0:00:23]} 31. Rcd1 {[%clk 0:01:42]}  Nc6 {[%clk 0:00:13]} 32. f4 {[%clk 0:01:40]}  Nd8 {[%clk 0:00:12]} 33. Rc1 {[%clk 0:01:05]}  Nb7 {[%clk 0:00:12]} 34. Rdc2 {[%clk 0:01:05]}  Nd8 {[%clk 0:00:11]} 35. h4 {[%clk 0:01:03]}  h5 {[%clk 0:00:10]} 36. Kf3 {[%clk 0:01:04]}  Nc6 {[%clk 0:00:10]} 37. Rd2 {[%clk 0:01:03]}  Nd8 {[%clk 0:00:09]} 38. Kg2 {[%clk 0:01:03]}  Rd7 {[%clk 0:00:08]} 39. Rxd7+ {[%clk 0:00:57]}  Kxd7 {[%clk 0:00:09]} 40. Kf3 {[%clk 0:00:58]}  Ke7 {[%clk 0:00:08]} 41. Ke3 {[%clk 0:00:58]}  Nc6 {[%clk 0:00:09]} 42. f5 {[%clk 0:00:24]}  exf5 {[%clk 0:00:08]} 43. exf5 {[%clk 0:00:25]}  Kf6 {[%clk 0:00:09]} 44. fxg6 {[%clk 0:00:24]}  Re8+ {[%clk 0:00:08]} 45. Kf2 {[%clk 0:00:23]}  fxg6 {[%clk 0:00:08]} 46. Rd1 {[%clk 0:00:23]}  Re5 {[%clk 0:00:06]} 47. Rd6+ {[%clk 0:00:19]}  Re6 {[%clk 0:00:07]} 48. Rd5 {[%clk 0:00:14]}  Re5 {[%clk 0:00:06]} 49. Rd7 {[%clk 0:00:14]}  Re7 {[%clk 0:00:06]} 50. Rd1 {[%clk 0:00:13]}  Re4 {[%clk 0:00:05]} 51. Kg2 {[%clk 0:00:11]}  Ke7 {[%clk 0:00:04]} 52. Rd6 {[%clk 0:00:10]}  Re6 {[%clk 0:00:04]} 53. Rd1 {[%clk 0:00:10]}  Re3 {[%clk 0:00:04]} 54. Nc1 {[%clk 0:00:09]}  Rc3 {[%clk 0:00:03]} 55. Nd3 {[%clk 0:00:09]}  b4 {[%clk 0:00:04]} 56. Nf4 {[%clk 0:00:10]}  Rxc5 {[%clk 0:00:03]} 57. Nxg6+ {[%clk 0:00:10]}  Kf6 {[%clk 0:00:03]} 58. Nf4 {[%clk 0:00:11]}  Nxa5 {[%clk 0:00:03]} 59. Rd6+ {[%clk 0:00:10]}  Ke7 {[%clk 0:00:03]} 60. Rxa6 {[%clk 0:00:11]}  Rb5 {[%clk 0:00:03]} 61. Ra7+ {[%clk 0:00:08]}  Kf6 {[%clk 0:00:01]} 62. Ra8 {[%clk 0:00:08]}  b3 {[%clk 0:00:01]} 63. Rf8+ {[%clk 0:00:09]}  Ke7 {[%clk 0:00:01]} 64. Ng6+ {[%clk 0:00:10]}  Kd7 {[%clk 0:00:02]} 65. Rf7+ {[%clk 0:00:09]}  Ke6 {[%clk 0:00:02]} 66. Rf1 {[%clk 0:00:09]}  b2 {[%clk 0:00:02]} 67. Nf4+ {[%clk 0:00:10]}  Ke7 {[%clk 0:00:02]} 68. Rb1 {[%clk 0:00:11]}  Nc4 {[%clk 0:00:02]} 69. Nd3 {[%clk 0:00:11]}  Rb3 {[%clk 0:00:02]} 70. Re1+ {[%clk 0:00:09]}  Kf7 {[%clk 0:00:02]} 71. Nxb2 {[%clk 0:00:08]}  Rxb2+ {[%clk 0:00:02]} 72. Kf3 {[%clk 0:00:09]}  Rb3+ {[%clk 0:00:02]} 73. Kf4 {[%clk 0:00:10]}  Nd6 {[%clk 0:00:02]} 74. Re5 {[%clk 0:00:09]}  Rb4+ {[%clk 0:00:03]} 75. Kf3 {[%clk 0:00:10]}  Kg7 {[%clk 0:00:02]} 76. Rxh5 {[%clk 0:00:09]}  Nf7 {[%clk 0:00:03]} 77. Rc5 {[%clk 0:00:09]}  Rb3+ {[%clk 0:00:03]} 78. Kf4 {[%clk 0:00:09]}  Rb4+ {[%clk 0:00:03]} 79. Kf3 {[%clk 0:00:10]}  Rb3+ {[%clk 0:00:03]} 80. Kg4 {[%clk 0:00:10]}  Rb4+ {[%clk 0:00:04]} 81. Kh3 {[%clk 0:00:10]}  Rb3 {[%clk 0:00:04]} 82. h5 {[%clk 0:00:07]}  Kh6 {[%clk 0:00:03]} 83. Kh4 {[%clk 0:00:08]}  Rb1 {[%clk 0:00:03]} 84. Rc6+ {[%clk 0:00:08]}  Kh7 {[%clk 0:00:03]} 85. Ra6 {[%clk 0:00:08]}  Rh1+ {[%clk 0:00:03]} 86. Kg4 {[%clk 0:00:09]}  Kg7 {[%clk 0:00:04]} 87. Ra5 {[%clk 0:00:08]}  Nh6+ {[%clk 0:00:04]} 88. Kf4 {[%clk 0:00:08]}  Rf1+ {[%clk 0:00:03]} 89. Kg5 {[%clk 0:00:09]}  Rf7 {[%clk 0:00:02]} 90. g4 {[%clk 0:00:09]}  Ng8 {[%clk 0:00:02]} 91. Ra6 {[%clk 0:00:08]}  Rb7 {[%clk 0:00:03]} 92. Rg6+ {[%clk 0:00:08]}  Kh7 {[%clk 0:00:02]} 93. Ra6 {[%clk 0:00:09]}  Rb5+ {[%clk 0:00:03]} 94. Kh4 {[%clk 0:00:10]}  Rb4 {[%clk 0:00:03]} 95. Ra7+ {[%clk 0:00:09]}  Kh6 {[%clk 0:00:03]} 96. Rf7 {[%clk 0:00:09]}  Rc4 {[%clk 0:00:02]} 97. Kg3 {[%clk 0:00:06]}  Rc3+ {[%clk 0:00:02]} 98. Kf4 {[%clk 0:00:07]}  Rc4+ {[%clk 0:00:03]} 99. Kf5 {[%clk 0:00:07]}  Rc5+ {[%clk 0:00:03]} 100. Ke6 {[%clk 0:00:07]}  Rg5 {[%clk 0:00:03]} 101. Rf4 {[%clk 0:00:05]}  Kg7 {[%clk 0:00:03]} 102. Rb4 {[%clk 0:00:05]}  Nh6 {[%clk 0:00:03]} 103. Rb7+ {[%clk 0:00:04]}  Kh8 {[%clk 0:00:03]} 104. Rb8+ {[%clk 0:00:05]}  Rg8 {[%clk 0:00:03]} 105. Rb6 {[%clk 0:00:03]}  Nxg4 {[%clk 0:00:03]} 106. Kf5 {[%clk 0:00:03]}  Kh7 {[%clk 0:00:03]} 107. Ra6 {[%clk 0:00:03]}  Nh6+ {[%clk 0:00:02]} 108. Kf4 {[%clk 0:00:04]}  Rf8+ {[%clk 0:00:03]} 109. Kg5 {[%clk 0:00:04]}  Rf5+ {[%clk 0:00:03]} 110. Kh4 {[%clk 0:00:05]}  Rf4+ {[%clk 0:00:03]} 111. Kg5 {[%clk 0:00:04]}  Rg4+ {[%clk 0:00:04]} 112. Kf6 {[%clk 0:00:05]}  Ng8+ {[%clk 0:00:04]} 113. Kf5 {[%clk 0:00:05]}  Rg1 {[%clk 0:00:04]} 114. Ra8 {[%clk 0:00:04]}  Kh6 {[%clk 0:00:04]} 115. Ra2 {[%clk 0:00:03]}  Ne7+ {[%clk 0:00:04]} 116. Ke5 {[%clk 0:00:03]}  Kxh5 {[%clk 0:00:03]} 117. Kf6 {[%clk 0:00:04]}  Nd5+ {[%clk 0:00:03]} 118. Kf5 {[%clk 0:00:05]}  Ne3+ {[%clk 0:00:03]} 119. Ke4 {[%clk 0:00:06]}  Ng4 {[%clk 0:00:03]} 120. Kf5 {[%clk 0:00:06]}  Rf1+ {[%clk 0:00:03]} 121. Ke4 {[%clk 0:00:07]}  Rf8 {[%clk 0:00:03]} 122. Ra5+ {[%clk 0:00:07]}  Kh4 {[%clk 0:00:03]} 123. Ra6 {[%clk 0:00:08]}  Kg3 {[%clk 0:00:04]} 124. Ra3+ {[%clk 0:00:08]}  Kh4 {[%clk 0:00:03]} 125. Ra7 {[%clk 0:00:09]}  Re8+ {[%clk 0:00:03]} 126. Kf4 {[%clk 0:00:10]}  Rf8+ {[%clk 0:00:03]} 127. Ke4 {[%clk 0:00:10]}  Kg5 {[%clk 0:00:03]} 128. Ra5+ {[%clk 0:00:10]}  Kg6 {[%clk 0:00:03]} 129. Ra1 {[%clk 0:00:10]}  Nf6+ {[%clk 0:00:04]} 130. Kf4 {[%clk 0:00:11]}  Re8 {[%clk 0:00:03]} 131. Kf3 {[%clk 0:00:11]}  Kf5 {[%clk 0:00:03]} 132. Rh1 {[%clk 0:00:11]}  Ng4 {[%clk 0:00:02]} 133. Ra1 {[%clk 0:00:12]}  Re3+ {[%clk 0:00:01]} 134. Kg2 {[%clk 0:00:13]}  Rb3 {[%clk 0:00:02]} 135. Ra6 {[%clk 0:00:14]}  Kf4 {[%clk 0:00:02]} 136. Ra8 {[%clk 0:00:15]}  Kg5 {[%clk 0:00:02]} 137. Rg8+ {[%clk 0:00:15]}  Kf4 {[%clk 0:00:02]} 138. Kf1 {[%clk 0:00:15]}  Kg3 {[%clk 0:00:02]} 139. Ke2 {[%clk 0:00:16]}  Rb2+ {[%clk 0:00:02]} 140. Kd3 {[%clk 0:00:16]}  Rf2 {[%clk 0:00:03]} 141. Kc3 {[%clk 0:00:17]}  Rf3+ {[%clk 0:00:03]} 142. Kc4 {[%clk 0:00:17]}  Rf4+ {[%clk 0:00:03]} 143. Kd3 {[%clk 0:00:17]}  Kf3 {[%clk 0:00:04]} 144. Ra8 {[%clk 0:00:17]}  Ne5+ {[%clk 0:00:04]} 145. Kd2 {[%clk 0:00:18]}  Rd4+ {[%clk 0:00:04]} 146. Ke1 {[%clk 0:00:19]}  Nd3+ {[%clk 0:00:03]} 147. Kf1 {[%clk 0:00:19]}  Nf4 {[%clk 0:00:03]} 148. Ra3+ {[%clk 0:00:19]}  Nd3 {[%clk 0:00:03]} 149. Ra8 {[%clk 0:00:19]}  Rb4 {[%clk 0:00:03]} 150. Rf8+ {[%clk 0:00:18]}  Nf4 {[%clk 0:00:03]} 151. Ke1 {[%clk 0:00:18]}  Rd4 {[%clk 0:00:03]} 152. Rf7 {[%clk 0:00:19]}  Rd5 {[%clk 0:00:03]} 153. Rf8 {[%clk 0:00:19]}  Rd6 {[%clk 0:00:03]} 154. Rf7 {[%clk 0:00:18]}  Rd5 {[%clk 0:00:02]} 155. Rf8 {[%clk 0:00:18]}  Ke3 {[%clk 0:00:03]} 156. Re8+ {[%clk 0:00:18]}  Kf3 {[%clk 0:00:03]} 157. Rf8 {[%clk 0:00:17]} 1/2-1/2


[Site "https://www.chess.com"]

[Event "Titled Tuesday Blitz August 09 Early 2022"]
[White "Melikhov, Evgeny V."]
[Black "Sailer, Mike"]
[WhiteFideId "4122046"]
[BlackFideId "2012901"]
[WhiteElo "1963"]
[BlackElo "2109"]
[Result "1-0"]
[Round "08"]
[TimeControl "180+1"]
[Date "2022.08.09"]
[WhiteClock "0:00:20"]
[BlackClock "0:00:04"]

1. e4 {[%clk 0:03:00]}  d5 {[%clk 0:02:58]} 2. exd5 {[%clk 0:03:00]}  Qxd5 {[%clk 0:02:59]} 3. Nc3 {[%clk 0:03:00]}  Qd6 {[%clk 0:02:59]} 4. d4 {[%clk 0:02:58]}  Nf6 {[%clk 0:03:00]} 5. Nf3 {[%clk 0:02:57]}  c6 {[%clk 0:03:01]} 6. Be2 {[%clk 0:02:56]}  Bg4 {[%clk 0:03:01]} 7. O-O {[%clk 0:02:53]}  e6 {[%clk 0:03:02]} 8. Ne5 {[%clk 0:02:46]}  Bxe2 {[%clk 0:03:02]} 9. Nxe2 {[%clk 0:02:45]}  Nbd7 {[%clk 0:02:56]} 10. Bf4 {[%clk 0:02:44]}  Nxe5 {[%clk 0:02:56]} 11. Bxe5 {[%clk 0:02:42]}  Qd8 {[%clk 0:02:56]} 12. Ng3 {[%clk 0:02:39]}  Bd6 {[%clk 0:02:54]} 13. Qe2 {[%clk 0:02:38]}  O-O {[%clk 0:02:51]} 14. Rad1 {[%clk 0:02:33]}  Qe7 {[%clk 0:02:42]} 15. a3 {[%clk 0:02:25]}  Rfe8 {[%clk 0:02:35]} 16. c4 {[%clk 0:02:22]}  Rad8 {[%clk 0:02:25]} 17. h3 {[%clk 0:02:14]}  Bxe5 {[%clk 0:02:25]} 18. dxe5 {[%clk 0:02:14]}  Nd7 {[%clk 0:02:07]} 19. Rfe1 {[%clk 0:01:59]}  a5 {[%clk 0:01:54]} 20. Rd6 {[%clk 0:01:44]}  Nb6 {[%clk 0:01:44]} 21. Red1 {[%clk 0:01:37]}  Nc8 {[%clk 0:01:44]} 22. R6d3 {[%clk 0:01:20]}  Qc7 {[%clk 0:01:25]} 23. Qe4 {[%clk 0:00:56]}  Rxd3 {[%clk 0:01:18]} 24. Rxd3 {[%clk 0:00:54]}  Rd8 {[%clk 0:01:17]} 25. Rxd8+ {[%clk 0:00:42]}  Qxd8 {[%clk 0:01:16]} 26. Kh2 {[%clk 0:00:38]}  h6 {[%clk 0:01:03]} 27. Qg4 {[%clk 0:00:34]}  Ne7 {[%clk 0:00:42]} 28. Ne4 {[%clk 0:00:32]}  Nf5 {[%clk 0:00:32]} 29. Nd6 {[%clk 0:00:32]}  Nxd6 {[%clk 0:00:30]} 30. Qd4 {[%clk 0:00:32]}  Kf8 {[%clk 0:00:17]} 31. exd6 {[%clk 0:00:31]}  b6 {[%clk 0:00:10]} 32. b4 {[%clk 0:00:30]}  axb4 {[%clk 0:00:10]} 33. axb4 {[%clk 0:00:30]}  f6 {[%clk 0:00:04]} 34. c5 {[%clk 0:00:30]}  e5 {[%clk 0:00:05]} 35. Qe4 {[%clk 0:00:29]}  Qd7 {[%clk 0:00:04]} 36. Qh7 {[%clk 0:00:29]}  bxc5 {[%clk 0:00:04]} 37. bxc5 {[%clk 0:00:29]}  Kf7 {[%clk 0:00:05]} 38. Qh8 {[%clk 0:00:29]}  e4 {[%clk 0:00:05]} 39. Qb8 {[%clk 0:00:25]}  Qe6 {[%clk 0:00:04]} 40. Qc7+ {[%clk 0:00:24]}  Kg6 {[%clk 0:00:05]} 41. d7 {[%clk 0:00:23]}  e3 {[%clk 0:00:04]} 42. fxe3 {[%clk 0:00:20]} 1-0


[Site "https://www.chess.com"]